[Event "FIDE World Senior-50 CC 2023"]
[Site "Terrasini"]
[Date "2023.10.30"]
[Round "6.5"]
[White "Dlugy, Maxim"]
[Black "Lima, Darcy"]
[Result "1/2-1/2"]
[ECO "A45"]
[WhiteElo "2520"]
[BlackElo "2416"]
[Annotator "RC"]
[PlyCount "55"]
[EventDate "2023.10.22"]
[EventType "swiss"]
[EventCountry "ITA"]
[SourceTitle "playchess.com"]
[Source "ChessBase"]
[SourceQuality "1"]
[TimeControl "40/5400+30:1800+30"]

1. d4 {[%emt 0:00:03]} Nf6 {[%emt 0:00:17]} 2. Bf4 {[%emt 0:00:06]} g6 {[%emt 0:00:17]} 3. Nc3 {[%emt 0:00:04]} d5 {[%emt 0:00:36]} 4. e3 {[%emt 0:00:04]} Bg7 {[%emt 0:00:16]} 5. Nb5 {[%emt 0:01:02]} Na6 {[%emt 0:01:24]} 6. h3 {[%emt 0:01:00]} O-O {[%emt 0:05:29]} 7. Nf3 {[%emt 0:00:16]} Ne4 {[%emt 0:01:24]} 8. Nd2 {[%emt 0:00:30]} c6 {[%emt 0:02:13]} 9. Nxe4 {[%emt 0:00:44]} dxe4 {[%emt 0:01:47]} 10. Nc3 {[%emt 0:00:40]} c5 {[%emt 0:00:11]} 11. Nxe4 {[%emt 0:07:39]} cxd4 {[%emt 0:00:21]} 12. exd4 {[%emt 0:00:13]} Nb4 {[%emt 0:00:40]} 13. c3 {[%emt 0:15:41]} Bf5 {[%emt 0:00:43]} 14. Qe2 {[%emt 0:04:02]} Nd5 {[%emt 0:09:55]} 15. Be5 {[%emt 0:18:46]} Bxe5 {[%emt 0:13:29]} 16. dxe5 {[%emt 0:00:29]} Qa5 {[%emt 0:16:37]} 17. Nd2 {[%emt 0:00:16]} Nxc3 {[%emt 0:01:45]} 18. bxc3 {[%emt 0:00:27]} Qxc3 {[%emt 0:00:05]} 19. Rd1 {[%emt 0:04:05]} Bc2 {[%emt 0:10:34]} 20. Rc1 {[%emt 0:00:02]} Rfd8 {[%emt 0:01:19]} 21. Qe3 {[%emt 0:01:40]} Qb2 {[%emt 0:01:03]} 22. Nc4 {[%emt 0:07:53]} Qb4+ {[%emt 0:00:09]} 23. Nd2 {[%emt 0:00:02]} Qb2 {[%emt 0:01:18]} 24. Nc4 {[%emt 0:00:04]} Qb4+ {[%emt 0:00:10]} 25. Nd2 {[%emt 0:00:04]} Rac8 {[%emt 0:30:58]} 26. a3 Qa5 {[%emt 0:00:30]} 27. Be2 Rc3 {[%emt 0:00:30]} 28. Bf1 {[%emt 0:04:33]} 1/2-1/2

[Event "FIDE World Senior-50 CC 2023"]
[Site "Terrasini"]
[Date "2023.10.30"]
[Round "6.6"]
[White "Mussanti, Diego"]
[Black "Matamoros Franco, Carlos S."]
[Result "1/2-1/2"]
[ECO "B11"]
[WhiteElo "2183"]
[BlackElo "2455"]
[Annotator "RC"]
[PlyCount "80"]
[EventDate "2023.10.22"]
[EventType "swiss"]
[EventCountry "ITA"]
[SourceTitle "playchess.com"]
[Source "ChessBase"]
[SourceQuality "1"]
[TimeControl "40/5400+30:1800+30"]

1. e4 {[%emt 0:00:03]} c6 {[%emt 0:00:10]} 2. Nc3 {[%emt 0:00:41]} d5 {[%emt 0:00:12]} 3. Nf3 {[%emt 0:00:17]} dxe4 {[%emt 0:00:40]} 4. Nxe4 {[%emt 0:00:28]} Nf6 {[%emt 0:00:37]} 5. Nxf6+ {[%emt 0:00:44]} exf6 {[%emt 0:00:11]} 6. Bc4 {[%emt 0:00:34]} Bd6 {[%emt 0:00:50]} 7. Qe2+ {[%emt 0:00:40]} Qe7 {[%emt 0:01:48]} 8. Qxe7+ {[%emt 0:00:24]} Kxe7 {[%emt 0:00:11]} 9. O-O {[%emt 0:00:54]} Rd8 {[%emt 0:00:52]} 10. Re1+ {[%emt 0:03:19]} Kf8 {[%emt 0:00:15]} 11. h3 {[%emt 0:07:12]} a5 {[%emt 0:06:32]} 12. a4 {[%emt 0:07:20]} Na6 {[%emt 0:00:48]} 13. c3 {[%emt 0:16:09]} Nc5 {[%emt 0:10:36]} 14. d4 {[%emt 0:08:23]} Nxa4 {[%emt 0:02:39]} 15. Bd3 {[%emt 0:05:40]} Nb6 {[%emt 0:04:02]} 16. Bxh7 {[%emt 0:00:41]} Nd5 {[%emt 0:02:09]} 17. Nh4 {[%emt 0:06:31]} Ne7 {[%emt 0:03:34]} 18. Bc2 {[%emt 0:04:27]} Be6 {[%emt 0:00:33]} 19. Nf3 {[%emt 0:02:53]} b5 {[%emt 0:05:31]} 20. Nd2 {[%emt 0:01:09]} f5 {[%emt 0:06:14]} 21. Nf3 {[%emt 0:01:19]} Bd5 {[%emt 0:01:21]} 22. Ne5 {[%emt 0:06:25]} c5 {[%emt 0:22:58]} 23. dxc5 {[%emt 0:03:06]} Bxc5 {[%emt 0:02:07]} 24. Nd3 {[%emt 0:06:01]} Bb6 {[%emt 0:12:50]} 25. Be3 {[%emt 0:03:33]} Bxe3 {[%emt 0:02:09]} 26. Rxe3 {[%emt 0:00:08]} Be4 {[%emt 0:04:15]} 27. Ne1 {[%emt 0:00:38]} Rd2 {[%emt 0:05:01]} 28. Bxe4 {[%emt 0:02:42]} fxe4 {[%emt 0:00:01]} 29. b4 {[%emt 0:00:22]} Nd5 {[%emt 0:00:20]} 30. Rxe4 {[%emt 0:00:09]} Nxc3 {[%emt 0:00:13]} 31. Rh4 {[%emt 0:00:07]} Kg8 {[%emt 0:03:03]} 32. bxa5 {[%emt 0:05:28]} Ra2 {[%emt 0:01:03]} 33. Rxa2 {[%emt 0:00:18]} Nxa2 {[%emt 0:00:02]} 34. Nd3 {[%emt 0:03:43]} Rxa5 {[%emt 0:00:14]} 35. Rd4 {[%emt 0:00:29]} Ra4 {[%emt 0:00:59]} 36. Rd8+ {[%emt 0:00:54]} Kh7 {[%emt 0:00:15]} 37. Rb8 {[%emt 0:00:09]} Rd4 {[%emt 0:00:37]} 38. Ne5 {[%emt 0:01:07]} f6 {[%emt 0:01:31]} 39. Nc6 {[%emt 0:00:39]} Rd1+ {[%emt 0:01:41]} 40. Kh2 {[%emt 0:00:08]} Rd2 {[%emt 0:00:44]} 1/2-1/2

[Event "FIDE World Senior-50 CC 2023"]
[Site "Terrasini"]
[Date "2023.10.30"]
[Round "6.7"]
[White "Godena, Michele"]
[Black "Vlassov, Nikolai"]
[Result "1/2-1/2"]
[ECO "B53"]
[WhiteElo "2441"]
[BlackElo "2283"]
[Annotator "RC"]
[PlyCount "75"]
[EventDate "2023.10.22"]
[EventType "swiss"]
[EventCountry "ITA"]
[SourceTitle "playchess.com"]
[Source "ChessBase"]
[SourceQuality "1"]
[TimeControl "40/5400+30:1800+30"]

1. e4 {[%emt 0:00:03]} c5 {[%emt 0:00:12]} 2. Nf3 {[%emt 0:00:38]} d6 {[%emt 0:00:10]} 3. d4 {[%emt 0:03:38]} cxd4 {[%emt 0:00:07]} 4. Qxd4 {[%emt 0:00:05]} Nc6 {[%emt 0:00:41]} 5. Bb5 {[%emt 0:01:01]} a6 {[%emt 0:01:21]} 6. Bxc6+ {[%emt 0:00:13]} bxc6 {[%emt 0:00:02]} 7. O-O {[%emt 0:01:23]} e5 {[%emt 0:01:18]} 8. Qa4 {[%emt 0:01:26]} Qc7 {[%emt 0:06:07]} 9. c4 {[%emt 0:02:06]} Ne7 {[%emt 0:02:51]} 10. c5 {[%emt 0:33:27]} dxc5 {[%emt 0:08:41]} 11. Be3 {[%emt 0:02:58]} Ng6 {[%emt 0:04:33]} 12. Nbd2 {[%emt 0:02:02]} Rb8 {[%emt 0:02:58]} 13. Qc2 {[%emt 0:12:31]} Be7 {[%emt 0:04:15]} 14. Bxc5 {[%emt 0:03:42]} O-O {[%emt 0:01:08]} 15. b3 {[%emt 0:00:25]} Nf4 {[%emt 0:06:10]} 16. Bxe7 {[%emt 0:14:08]} Qxe7 {[%emt 0:00:20]} 17. Nc4 {[%emt 0:05:53]} f6 {[%emt 0:14:54]} 18. Ne3 {[%emt 0:00:22]} Qf7 {[%emt 0:03:55]} 19. Rfd1 {[%emt 0:02:50]} Qh5 {[%emt 0:01:33]} 20. Ne1 {[%emt 0:04:35]} Ne2+ {[%emt 0:14:29]} 21. Kh1 {[%emt 0:00:12]} Nd4 {[%emt 0:02:37]} 22. Qc4+ {[%emt 0:00:05]} Qf7 {[%emt 0:00:17]} 23. Qxf7+ {[%emt 0:02:16]} Kxf7 {[%emt 0:01:20]} 24. Rac1 {[%emt 0:00:15]} a5 {[%emt 0:04:01]} 25. Nd3 {[%emt 0:00:27]} a4 {[%emt 0:01:04]} 26. bxa4 {[%emt 0:00:18]} Be6 {[%emt 0:00:27]} 27. f4 {[%emt 0:04:28]} Bxa2 {[%emt 0:03:02]} 28. fxe5 {[%emt 0:00:07]} Bb3 {[%emt 0:00:51]} 29. Rd2 {[%emt 0:02:12]} Bxa4 {[%emt 0:01:00]} 30. Nc5 {[%emt 0:00:44]} Nb3 {[%emt 0:01:45]} 31. e6+ {[%emt 0:00:55]} Kg6 {[%emt 0:00:29]} 32. Nxb3 {[%emt 0:00:27]} Bxb3 {[%emt 0:00:38]} 33. e7 {[%emt 0:00:31]} Rfe8 {[%emt 0:00:26]} 34. Nf5 {[%emt 0:00:29]} Be6 {[%emt 0:01:01]} 35. g4 {[%emt 0:00:27]} Bxf5 {[%emt 0:00:25]} 36. gxf5+ {[%emt 0:00:31]} Kf7 {[%emt 0:00:12]} 37. Rxc6 {[%emt 0:00:15]} Rxe7 {[%emt 0:00:02]} 38. Rc4 {[%emt 0:00:24]} 1/2-1/2

[Event "FIDE World Senior-50 CC 2023"]
[Site "Terrasini"]
[Date "2023.10.30"]
[Round "6.8"]
[White "Novik, Maxim"]
[Black "Prasad, Devaki V"]
[Result "1-0"]
[ECO "B92"]
[WhiteElo "2375"]
[BlackElo "2200"]
[Annotator "RC"]
[PlyCount "71"]
[EventDate "2023.10.22"]
[EventType "swiss"]
[EventCountry "ITA"]
[SourceTitle "playchess.com"]
[Source "ChessBase"]
[SourceQuality "1"]
[TimeControl "40/5400+30:1800+30"]

1. e4 {[%emt 0:00:03]} c5 {[%emt 0:00:16]} 2. Nf3 {[%emt 0:00:06]} d6 {[%emt 0:00:11]} 3. d4 {[%emt 0:00:18]} cxd4 {[%emt 0:00:17]} 4. Nxd4 {[%emt 0:00:01]} Nf6 {[%emt 0:00:12]} 5. Nc3 {[%emt 0:00:04]} a6 {[%emt 0:00:14]} 6. a4 {[%emt 0:03:23]} e5 {[%emt 0:01:40]} 7. Nb3 {[%emt 0:02:00]} Be7 {[%emt 0:00:12]} 8. Be2 {[%emt 0:00:07]} O-O {[%emt 0:00:38]} 9. O-O {[%emt 0:00:03]} Nc6 {[%emt 0:01:14]} 10. Be3 {[%emt 0:02:22]} Be6 {[%emt 0:02:46]} 11. Bf3 {[%emt 0:11:24]} Nb4 {[%emt 0:22:11]} 12. a5 {[%emt 0:20:27]} Rc8 {[%emt 0:00:22]} 13. Bb6 {[%emt 0:06:02]} Qd7 {[%emt 0:02:08]} 14. Re1 {[%emt 0:00:45]} Bd8 {[%emt 0:08:00]} 15. Be3 {[%emt 0:01:09]} Be7 {[%emt 0:03:27]} 16. Bb6 {[%emt 0:02:02]} Bd8 {[%emt 0:00:27]} 17. Ba7 {[%emt 0:02:00]} Nc6 {[%emt 0:09:21]} 18. Be3 {[%emt 0:00:14]} Nb4 {[%emt 0:01:34]} 19. Re2 {[%emt 0:09:01]} Be7 {[%emt 0:10:00]} 20. Rd2 {[%emt 0:01:10]} h6 {[%emt 0:06:14]} 21. Nc5 {[%emt 0:10:16]} Qc7 {[%emt 0:00:22]} 22. Nxe6 {[%emt 0:01:34]} fxe6 {[%emt 0:00:05]} 23. Bb6 {[%emt 0:00:56]} Qd7 {[%emt 0:01:31]} 24. Na4 {[%emt 0:01:08]} Qe8 {[%emt 0:04:37]} 25. Be3 {[%emt 0:02:04]} d5 {[%emt 0:08:19]} 26. c3 {[%emt 0:04:02]} dxe4 {[%emt 0:00:56]} 27. Bg4 {[%emt 0:00:16]} Nxg4 {[%emt 0:02:14]} 28. Qxg4 {[%emt 0:00:07]} Nc6 {[%emt 0:00:21]} 29. Nb6 {[%emt 0:02:09]} Rc7 {[%emt 0:02:28]} 30. Qxe6+ {[%emt 0:00:37]} Qf7 {[%emt 0:02:22]} 31. Qg4 {[%emt 0:01:35]} h5 {[%emt 0:02:47]} 32. Qxe4 {[%emt 0:00:12]} Bd8 {[%emt 0:00:31]} 33. b4 {[%emt 0:01:14]} Re8 {[%emt 0:09:03]} 34. Rad1 {[%emt 0:01:16]} Bf6 {[%emt 0:00:00]} 35. h3 {[%emt 0:00:51]} Ne7 {[%emt 0:00:00]} 36. Rd7 {[%emt 0:00:36]} 1-0

[Event "FIDE World Senior-50 CC 2023"]
[Site "Terrasini"]
[Date "2023.10.30"]
[Round "6.9"]
[White "Vinter-Schou, Uffe"]
[Black "Mrva, Martin"]
[Result "1-0"]
[ECO "A04"]
[WhiteElo "2345"]
[BlackElo "2366"]
[Annotator "RC"]
[PlyCount "73"]
[EventDate "2023.10.22"]
[EventType "swiss"]
[EventCountry "ITA"]
[SourceTitle "playchess.com"]
[Source "ChessBase"]
[SourceQuality "1"]
[TimeControl "40/5400+30:1800+30"]

1. Nf3 {[%emt 0:00:09]} d6 {[%emt 0:02:31]} 2. g3 {[%emt 0:01:14]} c5 {[%emt 0:07:37]} 3. d4 {[%emt 0:05:40]} cxd4 {[%emt 0:17:03]} 4. Nxd4 {[%emt 0:00:11]} Bd7 {[%emt 0:04:53]} 5. Bg2 {[%emt 0:02:10]} Nc6 {[%emt 0:01:05]} 6. O-O {[%emt 0:04:31]} g6 {[%emt 0:01:44]} 7. c4 {[%emt 0:08:30]} Bg7 {[%emt 0:01:05]} 8. Nc2 {[%emt 0:01:22]} Qc8 {[%emt 0:03:54]} 9. Qd2 {[%emt 0:07:03]} Bh3 {[%emt 0:04:15]} 10. Nc3 {[%emt 0:02:04]} h5 {[%emt 0:00:50]} 11. f3 {[%emt 0:31:46]} Bxg2 {[%emt 0:07:42]} 12. Kxg2 {[%emt 0:00:01]} h4 {[%emt 0:00:12]} 13. g4 {[%emt 0:00:14]} h3+ {[%emt 0:00:18]} 14. Kh1 {[%emt 0:00:42]} Ne5 {[%emt 0:05:47]} 15. b3 {[%emt 0:00:11]} b5 {[%emt 0:20:38]} 16. Nxb5 {[%emt 0:04:29]} Nf6 {[%emt 0:00:50]} 17. g5 {[%emt 0:09:42]} Nfd7 {[%emt 0:01:54]} 18. Ba3 {[%emt 0:01:45]} Kf8 {[%emt 0:05:22]} 19. Rad1 {[%emt 0:00:42]} Kg8 {[%emt 0:00:19]} 20. Ne3 {[%emt 0:01:23]} Nb6 {[%emt 0:02:31]} 21. Rc1 {[%emt 0:06:23]} Qb7 {[%emt 0:01:31]} 22. Nd5 {[%emt 0:01:42]} Rh5 {[%emt 0:01:59]} 23. Nbc7 {[%emt 0:00:41]} Nxd5 {[%emt 0:01:19]} 24. Nxa8 {[%emt 0:02:49]} Ne3 {[%emt 0:04:32]} 25. Qxe3 {[%emt 0:00:27]} Qxa8 {[%emt 0:00:04]} 26. c5 {[%emt 0:03:57]} d5 {[%emt 0:00:39]} 27. Bb2 {[%emt 0:00:25]} f6 {[%emt 0:02:14]} 28. Bxe5 {[%emt 0:00:48]} fxe5 {[%emt 0:00:04]} 29. c6 {[%emt 0:00:08]} d4 {[%emt 0:00:09]} 30. Qe4 {[%emt 0:01:10]} Rxg5 {[%emt 0:00:05]} 31. Rg1 {[%emt 0:00:32]} Rg2 {[%emt 0:00:53]} 32. Rxg2 {[%emt 0:00:12]} hxg2+ {[%emt 0:00:04]} 33. Kxg2 {[%emt 0:00:06]} Kf7 {[%emt 0:00:05]} 34. c7 {[%emt 0:00:39]} Qc8 {[%emt 0:00:03]} 35. Qd5+ {[%emt 0:00:16]} Kf6 {[%emt 0:00:06]} 36. Rc6+ {[%emt 0:01:00]} Kg5 {[%emt 0:00:05]} 37. Qd8 {[%emt 0:00:17]} 1-0

[Event "FIDE World Senior-50 CC 2023"]
[Site "Terrasini"]
[Date "2023.10.30"]
[Round "6.10"]
[White "Chinchilla Miranda, Eugenio"]
[Black "Holzke, Frank"]
[Result "0-1"]
[ECO "A40"]
[WhiteElo "2179"]
[BlackElo "2473"]
[Annotator "RC"]
[PlyCount "74"]
[EventDate "2023.10.22"]
[EventType "swiss"]
[EventCountry "ITA"]
[SourceTitle "playchess.com"]
[Source "ChessBase"]
[SourceQuality "1"]
[TimeControl "40/5400+30:1800+30"]

1. d4 {[%emt 0:00:16]} e6 {[%emt 0:00:17]} 2. c4 {[%emt 0:01:10]} b6 {[%emt 0:00:24]} 3. e4 {[%emt 0:00:19]} Bb7 {[%emt 0:00:17]} 4. Bd3 {[%emt 0:02:33]} Nc6 {[%emt 0:01:36]} 5. Nf3 {[%emt 0:04:16]} Nb4 {[%emt 0:01:33]} 6. O-O {[%emt 0:00:41]} Nxd3 {[%emt 0:02:09]} 7. Qxd3 {[%emt 0:00:09]} d6 {[%emt 0:00:36]} 8. Nc3 {[%emt 0:01:13]} Be7 {[%emt 0:00:45]} 9. Re1 {[%emt 0:00:57]} Nf6 {[%emt 0:01:01]} 10. d5 {[%emt 0:03:44]} e5 {[%emt 0:02:21]} 11. c5 {[%emt 0:01:37]} dxc5 {[%emt 0:02:27]} 12. Nxe5 {[%emt 0:00:14]} O-O {[%emt 0:00:45]} 13. Rd1 {[%emt 0:15:45]} Bd6 {[%emt 0:06:09]} 14. Nc4 {[%emt 0:11:02]} Ba6 {[%emt 0:04:32]} 15. f4 {[%emt 0:03:37]} b5 {[%emt 0:02:35]} 16. Na5 {[%emt 0:01:26]} c4 {[%emt 0:02:23]} 17. Qf3 {[%emt 0:03:06]} b4 {[%emt 0:04:29]} 18. Ne2 {[%emt 0:01:02]} Bc5+ {[%emt 0:14:10]} 19. Kh1 {[%emt 0:00:20]} Qd7 {[%emt 0:15:44]} 20. Nc6 {[%emt 0:13:57]} Rae8 {[%emt 0:03:10]} 21. Ng3 {[%emt 0:03:56]} Ng4 {[%emt 0:03:22]} 22. Nd4 {[%emt 0:05:43]} f5 {[%emt 0:03:47]} 23. h3 {[%emt 0:02:59]} Nf6 {[%emt 0:09:34]} 24. Ndxf5 {[%emt 0:00:40]} c6 {[%emt 0:00:46]} 25. d6 {[%emt 0:01:40]} Kh8 {[%emt 0:04:47]} 26. Be3 {[%emt 0:03:54]} Bxe3 {[%emt 0:00:42]} 27. Nxe3 {[%emt 0:00:35]} c5 {[%emt 0:00:28]} 28. Ng4 {[%emt 0:06:43]} Nxg4 {[%emt 0:02:08]} 29. hxg4 {[%emt 0:00:42]} Re6 {[%emt 0:00:59]} 30. f5 {[%emt 0:02:35]} Rxd6 {[%emt 0:01:05]} 31. e5 {[%emt 0:00:13]} Rd3 {[%emt 0:01:42]} 32. Rxd3 {[%emt 0:03:38]} cxd3 {[%emt 0:00:23]} 33. e6 {[%emt 0:00:40]} Qd6 {[%emt 0:00:20]} 34. Ne4 {[%emt 0:01:09]} Qe5 {[%emt 0:00:30]} 35. Rd1 {[%emt 0:02:41]} Bb7 {[%emt 0:02:21]} 36. Rxd3 {[%emt 0:01:40]} Qxe4 {[%emt 0:01:21]} 37. Re3 {[%emt 0:01:27]} Qb1+ {[%emt 0:01:09]} 0-1

[Event "FIDE World Senior-50 CC 2023"]
[Site "Terrasini"]
[Date "2023.10.30"]
[Round "6.11"]
[White "Stets, Vasyl"]
[Black "Mohr, Georg"]
[Result "1-0"]
[ECO "B06"]
[WhiteElo "2169"]
[BlackElo "2430"]
[Annotator "RC"]
[PlyCount "53"]
[EventDate "2023.10.22"]
[EventType "swiss"]
[EventCountry "ITA"]
[SourceTitle "playchess.com"]
[Source "ChessBase"]
[SourceQuality "1"]
[TimeControl "40/5400+30:1800+30"]

1. d4 {[%emt 0:00:04]} d6 {[%emt 0:02:00]} 2. Nf3 {[%emt 0:00:51]} g6 {[%emt 0:00:08]} 3. e4 {[%emt 0:00:51]} Bg7 {[%emt 0:00:22]} 4. Nc3 {[%emt 0:00:42]} a6 {[%emt 0:00:21]} 5. Be3 {[%emt 0:00:39]} b5 {[%emt 0:00:51]} 6. Qd2 {[%emt 0:01:17]} Bb7 {[%emt 0:00:11]} 7. a4 {[%emt 0:12:38]} b4 {[%emt 0:00:33]} 8. Nd5 {[%emt 0:00:02]} a5 {[%emt 0:03:03]} 9. Bd3 {[%emt 0:07:20]} e6 {[%emt 0:05:18]} 10. Nf4 {[%emt 0:00:45]} Nf6 {[%emt 0:01:49]} 11. e5 {[%emt 0:13:01]} Ng4 {[%emt 0:03:57]} 12. O-O-O {[%emt 0:02:32]} O-O {[%emt 0:01:25]} 13. h4 {[%emt 0:02:42]} dxe5 {[%emt 0:07:38]} 14. dxe5 {[%emt 0:22:25]} Nd7 {[%emt 0:01:37]} 15. Bxg6 {[%emt 0:03:58]} Ndxe5 {[%emt 0:12:42]} 16. Qxd8 {[%emt 0:03:22]} Rfxd8 {[%emt 0:01:00]} 17. Nxe5 {[%emt 0:00:32]} Bxe5 {[%emt 0:01:55]} 18. Bh5 {[%emt 0:04:34]} Nxf2 {[%emt 0:07:52]} 19. Rxd8+ {[%emt 0:01:06]} Rxd8 {[%emt 0:00:06]} 20. Rf1 {[%emt 0:00:08]} Ne4 {[%emt 0:19:46]} 21. Nd3 {[%emt 0:01:03]} Bf6 {[%emt 0:06:23]} 22. Nc5 {[%emt 0:01:24]} Nxc5 {[%emt 0:00:18]} 23. Rxf6 {[%emt 0:00:28]} Nxa4 {[%emt 0:04:17]} 24. Rxf7 {[%emt 0:01:34]} Rd5 {[%emt 0:01:45]} 25. Bh6 {[%emt 0:00:45]} Rf5 {[%emt 0:04:09]} 26. Rg7+ {[%emt 0:01:13]} Kf8 {[%emt 0:01:07]} 27. Rd7+ {[%emt 0:00:42]} 1-0

[Event "FIDE World Senior-50 CC 2023"]
[Site "Terrasini"]
[Date "2023.10.30"]
[Round "6.12"]
[White "Seul, Georg"]
[Black "Boulard, Eric"]
[Result "0-1"]
[ECO "B12"]
[WhiteElo "2383"]
[BlackElo "2181"]
[Annotator "RC"]
[PlyCount "60"]
[EventDate "2023.10.22"]
[EventType "swiss"]
[EventCountry "ITA"]
[SourceTitle "playchess.com"]
[Source "ChessBase"]
[SourceQuality "1"]
[TimeControl "40/5400+30:1800+30"]

1. e4 {[%emt 0:00:02]} c6 {[%emt 0:00:12]} 2. d4 {[%emt 0:02:44]} d5 {[%emt 0:00:42]} 3. e5 {[%emt 0:00:17]} c5 {[%emt 0:01:09]} 4. dxc5 {[%emt 0:01:06]} e6 {[%emt 0:00:43]} 5. Bd3 {[%emt 0:17:28]} Bxc5 {[%emt 0:07:00]} 6. Qg4 {[%emt 0:00:48]} g6 {[%emt 0:00:49]} 7. Nf3 {[%emt 0:00:48]} Nc6 {[%emt 0:04:44]} 8. O-O {[%emt 0:06:25]} Qc7 {[%emt 0:04:15]} 9. Bf4 {[%emt 0:13:01]} Bd7 {[%emt 0:09:27]} 10. Nbd2 {[%emt 0:10:49]} O-O-O {[%emt 1:06:29]} 11. Nb3 {[%emt 0:11:39]} f5 {[%emt 0:00:00]} 12. Qg3 {[%emt 0:02:34]} Bb6 {[%emt 0:00:00]} 13. Rac1 {[%emt 0:00:25]} Nge7 {[%emt 0:00:00]} 14. c4 {[%emt 0:01:12]} dxc4 {[%emt 0:00:00]} 15. Bxc4 {[%emt 0:00:08]} h6 {[%emt 0:00:00]} 16. h4 {[%emt 0:01:55]} g5 {[%emt 0:00:00]} 17. hxg5 {[%emt 0:00:12]} Rdg8 {[%emt 0:00:00]} 18. Rfd1 {[%emt 0:07:13]} Ng6 {[%emt 0:00:00]} 19. gxh6 {[%emt 0:05:02]} Nxf4 {[%emt 0:00:00]} 20. Qxf4 {[%emt 0:00:04]} Rg6 {[%emt 0:00:00]} 21. Kf1 {[%emt 0:04:26]} Rhxh6 {[%emt 0:00:00]} 22. Qd2 {[%emt 0:00:49]} Rh1+ {[%emt 0:00:00]} 23. Ke2 {[%emt 0:02:30]} Rxd1 {[%emt 0:00:45]} 24. Kxd1 {[%emt 0:00:12]} Rxg2 {[%emt 0:00:15]} 25. Nbd4 {[%emt 0:01:02]} Bxd4 {[%emt 0:00:58]} 26. Nxd4 {[%emt 0:01:14]} Rg1+ {[%emt 0:00:34]} 27. Kc2 {[%emt 0:00:05]} Rxc1+ {[%emt 0:00:10]} 28. Kxc1 {[%emt 0:00:12]} Nxe5 {[%emt 0:00:13]} 29. b3 {[%emt 0:00:25]} b5 {[%emt 0:00:10]} 30. f4 {[%emt 0:00:21]} Nf7 {[%emt 0:00:48]} 0-1

[Event "FIDE World Senior-50 CC 2023"]
[Site "Terrasini"]
[Date "2023.10.30"]
[Round "6.13"]
[White "Paschall, William"]
[Black "Milat, Marcel"]
[Result "1-0"]
[ECO "A14"]
[WhiteElo "2329"]
[BlackElo "2207"]
[Annotator "RC"]
[PlyCount "53"]
[EventDate "2023.10.22"]
[EventType "swiss"]
[EventCountry "ITA"]
[SourceTitle "playchess.com"]
[Source "ChessBase"]
[SourceQuality "1"]
[TimeControl "40/5400+30:1800+30"]

1. Nf3 {[%emt 0:00:39]} Nf6 {[%emt 0:01:21]} 2. c4 {[%emt 0:00:53]} e6 {[%emt 0:00:25]} 3. g3 {[%emt 0:01:52]} d5 {[%emt 0:01:31]} 4. Bg2 {[%emt 0:01:08]} Be7 {[%emt 0:00:10]} 5. O-O {[%emt 0:00:48]} O-O {[%emt 0:00:05]} 6. b3 {[%emt 0:01:51]} d4 {[%emt 0:06:28]} 7. Bb2 {[%emt 0:03:04]} c5 {[%emt 0:00:09]} 8. b4 {[%emt 0:03:19]} Nc6 {[%emt 0:08:14]} 9. b5 {[%emt 0:07:04]} Na5 {[%emt 0:00:28]} 10. d3 {[%emt 0:01:55]} Nd7 {[%emt 0:12:08]} 11. e3 {[%emt 0:05:53]} e5 {[%emt 0:00:06]} 12. Nbd2 {[%emt 0:02:11]} a6 {[%emt 0:03:10]} 13. a4 {[%emt 0:01:25]} Re8 {[%emt 0:00:29]} 14. Re1 {[%emt 0:04:26]} f6 {[%emt 0:01:11]} 15. Nh4 {[%emt 0:07:05]} Nf8 {[%emt 0:00:52]} 16. exd4 {[%emt 0:06:40]} cxd4 {[%emt 0:00:14]} 17. f4 {[%emt 0:01:20]} Bb4 {[%emt 0:12:03]} 18. Bc1 {[%emt 0:09:16]} exf4 {[%emt 0:03:22]} 19. Rb1 {[%emt 0:06:49]} Bd6 {[%emt 0:28:10]} 20. Rxe8 {[%emt 0:02:46]} Qxe8 {[%emt 0:01:42]} 21. Ne4 {[%emt 0:01:08]} Be7 {[%emt 0:01:13]} 22. gxf4 {[%emt 0:02:28]} axb5 {[%emt 0:01:30]} 23. axb5 {[%emt 0:03:40]} b6 {[%emt 0:00:54]} 24. Nd6 {[%emt 0:03:13]} Bxd6 {[%emt 0:00:21]} 25. Bxa8 {[%emt 0:00:06]} Nb7 {[%emt 0:01:45]} 26. Bd2 {[%emt 0:04:04]} Nc5 {[%emt 0:04:07]} 27. Qf3 {[%emt 0:02:00]} 1-0

[Event "FIDE World Senior-50 CC 2023"]
[Site "Terrasini"]
[Date "2023.10.30"]
[Round "6.14"]
[White "Morin, Yves"]
[Black "Cummings, David H."]
[Result "1/2-1/2"]
[ECO "C44"]
[WhiteElo "2169"]
[BlackElo "2325"]
[Annotator "RC"]
[PlyCount "87"]
[EventDate "2023.10.22"]
[EventType "swiss"]
[EventCountry "ITA"]
[SourceTitle "playchess.com"]
[Source "ChessBase"]
[SourceQuality "1"]
[TimeControl "40/5400+30:1800+30"]

1. e4 {[%emt 0:00:07]} e5 {[%emt 0:00:22]} 2. Nf3 {[%emt 0:00:41]} Nc6 {[%emt 0:00:08]} 3. c3 {[%emt 0:01:08]} d5 {[%emt 0:00:56]} 4. d3 {[%emt 0:00:30]} Nf6 {[%emt 0:00:35]} 5. Qa4 {[%emt 0:01:46]} Bd6 {[%emt 0:02:49]} 6. Bg5 {[%emt 0:07:04]} dxe4 {[%emt 0:02:11]} 7. dxe4 {[%emt 0:00:42]} h6 {[%emt 0:00:37]} 8. Bh4 {[%emt 0:00:36]} Bd7 {[%emt 0:06:32]} 9. Qc2 {[%emt 0:02:38]} g5 {[%emt 0:07:06]} 10. Bg3 {[%emt 0:00:23]} Nh5 {[%emt 0:07:28]} 11. Nbd2 {[%emt 0:02:25]} Nxg3 {[%emt 0:03:11]} 12. hxg3 {[%emt 0:01:31]} Qf6 {[%emt 0:00:44]} 13. Nc4 {[%emt 0:04:50]} O-O-O {[%emt 0:06:37]} 14. Ne3 {[%emt 0:09:26]} Ne7 {[%emt 0:03:27]} 15. Bd3 {[%emt 0:05:12]} g4 {[%emt 0:09:11]} 16. Nh4 {[%emt 0:01:55]} Bc5 {[%emt 0:00:25]} 17. Qe2 {[%emt 0:03:46]} Qg5 {[%emt 0:00:53]} 18. O-O-O {[%emt 0:09:02]} Bxe3+ {[%emt 0:01:38]} 19. Qxe3 {[%emt 0:00:36]} Qxe3+ {[%emt 0:00:47]} 20. fxe3 {[%emt 0:00:07]} Be6 {[%emt 0:00:12]} 21. b3 {[%emt 0:03:00]} Rd6 {[%emt 0:02:23]} 22. Bc2 {[%emt 0:02:33]} Rxd1+ {[%emt 0:03:07]} 23. Rxd1 {[%emt 0:01:43]} h5 {[%emt 0:02:40]} 24. Rf1 {[%emt 0:01:13]} Rh6 {[%emt 0:01:10]} 25. Kd2 {[%emt 0:03:15]} Kd7 {[%emt 0:02:50]} 26. Ke2 {[%emt 0:01:06]} Ke8 {[%emt 0:00:57]} 27. Kd2 {[%emt 0:02:09]} Nc8 {[%emt 0:08:39]} 28. Nf5 {[%emt 0:04:52]} Bxf5 {[%emt 0:00:59]} 29. exf5 {[%emt 0:01:32]} Ke7 {[%emt 0:00:49]} 30. Rh1 {[%emt 0:02:03]} Nd6 {[%emt 0:01:56]} 31. e4 {[%emt 0:00:36]} Kf6 {[%emt 0:02:15]} 32. Bd3 {[%emt 0:00:26]} Kg5 {[%emt 0:01:08]} 33. Rh4 {[%emt 0:01:22]} Ne8 {[%emt 0:04:22]} 34. Ke3 {[%emt 0:00:56]} Rd6 {[%emt 0:01:26]} 35. Rh1 {[%emt 0:02:26]} Nf6 {[%emt 0:00:53]} 36. Bc4 {[%emt 0:00:50]} Rd7 {[%emt 0:00:47]} 37. b4 {[%emt 0:04:42]} Kh6 {[%emt 0:00:43]} 38. a4 {[%emt 0:00:52]} Kg7 {[%emt 0:00:20]} 39. a5 {[%emt 0:01:16]} Rd6 {[%emt 0:05:55]} 40. Bd3 {[%emt 0:01:33]} Rc6 {[%emt 0:02:03]} 41. Kd2 {[%emt 0:30:24]} Kf8 {[%emt 0:37:01]} 42. Rc1 {[%emt 0:02:29]} Ke7 {[%emt 0:00:45]} 43. Ke3 {[%emt 0:00:45]} Rd6 {[%emt 0:01:49]} 44. Rh1 {[%emt 0:01:37]} 1/2-1/2